[Event "EYCC Girls-U16 2019"]
[Site "Bratislava"]
[Date "2019.08.07"]
[Round "6.15"]
[White "Diez, Ambre"]
[Black "Srdanovic, Jovana"]
[Result "1/2-1/2"]
[ECO "A06"]
[WhiteElo "1908"]
[BlackElo "1975"]
[Annotator "NA"]
[PlyCount "73"]
[EventDate "2019.08.02"]
[EventType "swiss"]
[EventCountry "SVK"]
[SourceTitle "playchess.com"]
[Source "ChessBase"]
[SourceQuality "1"]
[TimeControl "40/5400+30:1800+30"]

1. Nf3 {[%emt 0:00:00]} d5 {[%emt 0:00:00]} 2. g3 {[%emt 0:00:00]} c6 {[%emt 0:00:00]} 3. Bg2 {[%emt 0:00:00]} Nf6 {[%emt 0:00:00]} 4. O-O {[%emt 0:00:05]} Bf5 {[%emt 0:00:00]} 5. c4 {[%emt 0:00:10]} e6 {[%emt 0:00:01]} 6. cxd5 {[%emt 0:00:09]} exd5 {[%emt 0:00:13]} 7. d3 {[%emt 0:00:11]} Bc5 {[%emt 0:02:32]} 8. Nc3 {[%emt 0:01:36]} O-O {[%emt 0:00:36]} 9. Nh4 {[%emt 0:01:57]} Bg4 {[%emt 0:12:43]} 10. h3 {[%emt 0:04:04]} Be6 {[%emt 0:09:35]} 11. Qc2 {[%emt 0:04:52]} Na6 {[%emt 0:07:05]} 12. a3 {[%emt 0:02:43]} d4 {[%emt 0:02:35]} 13. Nb1 {[%emt 0:02:43]} Be7 {[%emt 0:02:03]} 14. b4 {[%emt 0:01:56]} Nc7 {[%emt 0:00:13]} 15. Bb2 {[%emt 0:00:39]} Qd7 {[%emt 0:10:36]} 16. Kh2 {[%emt 0:00:45]} a5 {[%emt 0:01:24]} 17. Nf3 {[%emt 0:08:18]} axb4 {[%emt 0:06:43]} 18. Nxd4 {[%emt 0:05:27]} bxa3 {[%emt 0:01:16]} 19. Nxe6 {[%emt 0:00:18]} axb2 {[%emt 0:11:12]} 20. Rxa8 {[%emt 0:00:27]} Rxa8 {[%emt 0:00:05]} 21. Nxc7 {[%emt 0:00:51]} Qxc7 {[%emt 0:00:05]} 22. Qxb2 {[%emt 0:00:14]} Ne8 {[%emt 0:00:47]} 23. Nc3 {[%emt 0:02:50]} Bf6 {[%emt 0:02:24]} 24. Qb3 {[%emt 0:01:04]} Nd6 {[%emt 0:01:23]} 25. Ne4 {[%emt 0:03:28]} Nxe4 {[%emt 0:00:45]} 26. Bxe4 {[%emt 0:00:09]} g6 {[%emt 0:00:55]} 27. Rb1 {[%emt 0:00:54]} Ra7 {[%emt 0:00:31]} 28. Kg2 {[%emt 0:00:44]} Kg7 {[%emt 0:00:04]} 29. Qb4 {[%emt 0:03:40]} Qd8 {[%emt 0:02:39]} 30. e3 {[%emt 0:06:04]} h5 {[%emt 0:02:19]} 31. h4 {[%emt 0:01:15]} Qf8 {[%emt 0:02:18]} 32. Qb6 {[%emt 0:05:38]} Qa3 {[%emt 0:03:33]} 33. d4 {[%emt 0:00:35]} Qa2 {[%emt 0:05:36]} 34. Rb2 {[%emt 0:00:35]} Qa3 {[%emt 0:00:29]} 35. Rb1 {[%emt 0:00:38]} Qa2 {[%emt 0:00:47]} 36. Rb2 {[%emt 0:08:19]} Qa3 {[%emt 0:00:21]} 37. Rb1 1/2-1/2

[Event "EYCC Girls-U16 2019"]
[Site "Bratislava"]
[Date "2019.08.07"]
[Round "6.16"]
[White "Jarocka, Liwia"]
[Black "Ozbek, Busra"]
[Result "0-1"]
[ECO "C92"]
[WhiteElo "2102"]
[BlackElo "1866"]
[Annotator "NA"]
[PlyCount "126"]
[EventDate "2019.08.02"]
[EventType "swiss"]
[EventCountry "SVK"]
[SourceTitle "playchess.com"]
[Source "ChessBase"]
[SourceQuality "1"]
[TimeControl "40/5400+30:1800+30"]

1. e4 {[%emt 0:00:00]} e5 {[%emt 0:00:00]} 2. Nf3 {[%emt 0:00:00]} Nc6 {[%emt 0:00:00]} 3. Bb5 {[%emt 0:00:04]} a6 {[%emt 0:00:00]} 4. Ba4 {[%emt 0:00:08]} Nf6 {[%emt 0:00:28]} 5. O-O {[%emt 0:00:14]} Be7 {[%emt 0:00:13]} 6. Re1 {[%emt 0:00:13]} b5 {[%emt 0:00:05]} 7. Bb3 {[%emt 0:00:05]} d6 {[%emt 0:00:09]} 8. c3 {[%emt 0:00:17]} O-O {[%emt 0:00:26]} 9. h3 {[%emt 0:00:10]} Nd7 {[%emt 0:00:20]} 10. d4 {[%emt 0:00:42]} Bf6 {[%emt 0:00:13]} 11. a4 {[%emt 0:00:48]} Bb7 {[%emt 0:00:39]} 12. axb5 {[%emt 0:11:49]} axb5 {[%emt 0:00:16]} 13. Rxa8 {[%emt 0:00:09]} Qxa8 {[%emt 0:05:26]} 14. Na3 {[%emt 0:00:34]} b4 {[%emt 0:19:15]} 15. Nc4 {[%emt 0:03:08]} bxc3 {[%emt 0:08:09]} 16. bxc3 {[%emt 0:00:18]} Na5 {[%emt 0:00:57]} 17. Nxa5 {[%emt 0:05:23]} Qxa5 {[%emt 0:00:08]} 18. Bd2 {[%emt 0:01:06]} Qb6 {[%emt 0:08:38]} 19. Be3 {[%emt 0:08:33]} exd4 {[%emt 0:10:29]} 20. Bxd4 {[%emt 0:02:17]} Qa5 {[%emt 0:01:01]} 21. Qb1 {[%emt 0:14:45]} Ba8 {[%emt 0:08:48]} 22. Re3 {[%emt 0:11:11]} Be5 {[%emt 0:05:14]} 23. Bxe5 {[%emt 0:02:05]} Nxe5 {[%emt 0:02:35]} 24. Nh4 {[%emt 0:08:59]} Qb6 {[%emt 0:05:07]} 25. Qd1 {[%emt 0:04:35]} Rb8 {[%emt 0:03:05]} 26. Bc2 {[%emt 0:00:25]} g6 {[%emt 0:03:45]} 27. Rg3 {[%emt 0:02:08]} Kh8 {[%emt 0:02:23]} 28. Qd4 {[%emt 0:06:17]} Qxd4 {[%emt 0:03:08]} 29. cxd4 {[%emt 0:00:01]} Nd7 {[%emt 0:01:10]} 30. Re3 {[%emt 0:03:00]} c5 {[%emt 0:01:33]} 31. Rc3 {[%emt 0:06:32]} Kg7 {[%emt 0:03:29]} 32. Nf3 {[%emt 0:01:18]} Rb4 {[%emt 0:00:43]} 33. Ra3 {[%emt 0:02:56]} Bc6 {[%emt 0:03:36]} 34. Rc3 {[%emt 0:03:07]} Ba4 {[%emt 0:02:41]} 35. Bxa4 {[%emt 0:00:47]} Rxa4 36. dxc5 {[%emt 0:00:46]} dxc5 {[%emt 0:00:15]} 37. Rd3 {[%emt 0:01:10]} Nb6 {[%emt 0:00:58]} 38. Rc3 {[%emt 0:00:18]} c4 {[%emt 0:00:33]} 39. Kf1 {[%emt 0:00:18]} Rb4 {[%emt 0:00:42]} 40. Nd2 {[%emt 0:00:00]} Kf6 {[%emt 0:00:00]} 41. Ke2 {[%emt 0:00:35]} Ke6 {[%emt 0:07:09]} 42. Ke3 {[%emt 0:01:10]} Kd6 {[%emt 0:01:46]} 43. Kd4 {[%emt 0:04:15]} Kc6 {[%emt 0:00:36]} 44. Nxc4 {[%emt 0:00:49]} Kb5 {[%emt 0:01:21]} 45. Ke5 {[%emt 0:00:54]} Nxc4+ {[%emt 0:06:27]} 46. Kf6 {[%emt 0:00:13]} Kc5 {[%emt 0:01:02]} 47. Kxf7 {[%emt 0:02:04]} Kd4 {[%emt 0:01:07]} 48. Rc1 {[%emt 0:04:07]} Kxe4 {[%emt 0:01:10]} 49. Kg8 {[%emt 0:00:31]} h5 {[%emt 0:01:42]} 50. Kg7 {[%emt 0:00:33]} Ne5 {[%emt 0:00:32]} 51. Kf6 {[%emt 0:04:28]} Rb6+ {[%emt 0:00:19]} 52. Kg5 {[%emt 0:00:24]} Nf7+ {[%emt 0:01:23]} 53. Kh4 {[%emt 0:00:05]} Ke5 {[%emt 0:02:03]} 54. f4+ {[%emt 0:01:42]} Kf6 {[%emt 0:01:17]} 55. g4 {[%emt 0:00:11]} hxg4 {[%emt 0:01:00]} 56. hxg4 {[%emt 0:00:07]} Nd8 {[%emt 0:02:04]} 57. Rc7 {[%emt 0:01:50]} Rc6 {[%emt 0:04:12]} 58. Ra7 {[%emt 0:02:45]} Ne6 {[%emt 0:01:04]} 59. g5+ {[%emt 0:03:18]} Kf5 {[%emt 0:00:52]} 60. Rf7+ {[%emt 0:00:05]} Ke4 {[%emt 0:00:03]} 61. f5 {[%emt 0:03:28]} gxf5 {[%emt 0:01:28]} 62. Re7 {[%emt 0:03:22]} Kf4 {[%emt 0:00:42]} 63. g6 {[%emt 0:00:24]} Nf8 {[%emt 0:00:34]} 0-1

[Event "EYCC Girls-U16 2019"]
[Site "Bratislava"]
[Date "2019.08.07"]
[Round "6.17"]
[White "Yedigaryan, Asya"]
[Black "Levitan, Ronit"]
[Result "1-0"]
[ECO "A06"]
[WhiteElo "1583"]
[BlackElo "2022"]
[Annotator "NA"]
[PlyCount "119"]
[EventDate "2019.08.02"]
[EventType "swiss"]
[EventCountry "SVK"]
[SourceTitle "playchess.com"]
[Source "ChessBase"]
[SourceQuality "1"]
[TimeControl "40/5400+30:1800+30"]

1. g3 {[%emt 0:00:00]} d5 {[%emt 0:00:00]} 2. Nf3 {[%emt 0:00:00]} Bg4 {[%emt 0:00:27]} 3. Bg2 {[%emt 0:00:00]} c6 {[%emt 0:00:06]} 4. b3 {[%emt 0:00:00]} Nf6 {[%emt 0:01:13]} 5. Bb2 {[%emt 0:00:05]} Nbd7 {[%emt 0:00:14]} 6. d3 {[%emt 0:00:17]} e6 {[%emt 0:02:30]} 7. Nbd2 {[%emt 0:00:07]} Bd6 {[%emt 0:00:33]} 8. O-O {[%emt 0:00:17]} O-O {[%emt 0:00:49]} 9. h3 {[%emt 0:00:25]} Bxf3 {[%emt 0:02:19]} 10. Bxf3 {[%emt 0:04:04]} e5 {[%emt 0:00:35]} 11. e4 {[%emt 0:01:21]} dxe4 {[%emt 0:09:24]} 12. dxe4 {[%emt 0:00:20]} Qe7 {[%emt 0:01:36]} 13. Nc4 {[%emt 0:05:07]} Bc7 {[%emt 0:00:14]} 14. a4 {[%emt 0:02:38]} Rfd8 {[%emt 0:09:28]} 15. Qe2 {[%emt 0:03:34]} a5 {[%emt 0:01:46]} 16. Bg2 {[%emt 0:15:30]} Rdb8 {[%emt 0:18:21]} 17. Bc3 {[%emt 0:13:04]} g6 {[%emt 0:05:40]} 18. Qe1 {[%emt 0:05:54]} b6 {[%emt 0:03:25]} 19. Kh1 {[%emt 0:10:06]} Re8 {[%emt 0:05:21]} 20. Qe2 {[%emt 0:03:52]} Rad8 {[%emt 0:06:57]} 21. Rad1 {[%emt 0:05:21]} Qe6 {[%emt 0:06:30]} 22. Rd2 {[%emt 0:07:50]} Nc5 {[%emt 0:08:16]} 23. Rfd1 {[%emt 0:05:41]} Rxd2 {[%emt 0:00:10]} 24. Rxd2 {[%emt 0:00:45]} Re7 {[%emt 0:01:18]} 25. Kh2 {[%emt 0:02:42]} Rd7 {[%emt 0:00:33]} 26. Bf3 {[%emt 0:01:27]} Rxd2 {[%emt 0:02:55]} 27. Bxd2 {[%emt 0:01:28]} Kg7 {[%emt 0:00:45]} 28. Qe3 {[%emt 0:00:44]} Nxa4 {[%emt 0:03:49]} 29. Nxa5 {[%emt 0:04:58]} bxa5 {[%emt 0:00:43]} 30. bxa4 {[%emt 0:00:05]} Qc4 {[%emt 0:05:24]} 31. Qb3 {[%emt 0:00:28]} Qc5 {[%emt 0:00:26]} 32. Be3 {[%emt 0:00:27]} Qb4 {[%emt 0:01:54]} 33. Qxb4 {[%emt 0:02:26]} axb4 {[%emt 0:00:30]} 34. Bc5 {[%emt 0:00:02]} Ba5 {[%emt 0:01:08]} 35. Bd6 {[%emt 0:00:20]} Nd7 {[%emt 0:00:47]} 36. Bg4 {[%emt 0:00:30]} Nb6 {[%emt 0:00:18]} 37. Bxe5+ f6 {[%emt 0:00:08]} 38. Bc7 {[%emt 0:01:01]} Kf7 39. Be2 {[%emt 0:01:37]} Ke7 {[%emt 0:00:44]} 40. Kg2 {[%emt 0:00:00]} Kd7 {[%emt 0:00:00]} 41. Bxb6 {[%emt 0:00:25]} Bxb6 {[%emt 0:00:34]} 42. f4 {[%emt 0:01:21]} Kd6 {[%emt 0:14:51]} 43. Kf3 {[%emt 0:00:21]} h5 {[%emt 0:04:57]} 44. Bc4 {[%emt 0:06:41]} g5 {[%emt 0:01:20]} 45. h4 {[%emt 0:07:44]} gxh4 {[%emt 0:04:58]} 46. gxh4 {[%emt 0:00:22]} Ke7 {[%emt 0:00:11]} 47. Be2 {[%emt 0:01:26]} Kf7 {[%emt 0:00:26]} 48. Kg2 {[%emt 0:02:11]} Kg6 {[%emt 0:00:17]} 49. f5+ {[%emt 0:01:17]} Kh6 {[%emt 0:00:25]} 50. Ba6 {[%emt 0:00:10]} c5 {[%emt 0:00:48]} 51. Bc4 {[%emt 0:00:21]} Kg7 {[%emt 0:00:45]} 52. Kf1 {[%emt 0:01:43]} Kf8 {[%emt 0:02:21]} 53. Be2 {[%emt 0:00:10]} Ke7 {[%emt 0:00:32]} 54. Bxh5 {[%emt 0:00:17]} Kd6 {[%emt 0:00:07]} 55. Bf7 {[%emt 0:00:36]} Bd8 {[%emt 0:00:18]} 56. Ke2 {[%emt 0:00:20]} Ke7 {[%emt 0:05:00]} 57. Bd5 {[%emt 0:00:19]} Kf8 {[%emt 0:00:17]} 58. Kd3 {[%emt 0:00:14]} Kg7 {[%emt 0:00:37]} 59. Kc4 {[%emt 0:00:50]} Be7 {[%emt 0:00:09]} 60. Kb5 {[%emt 0:00:29]} 1-0

[Event "EYCC Girls-U16 2019"]
[Site "Bratislava"]
[Date "2019.08.07"]
[Round "6.18"]
[White "Dejanovic, Tereza"]
[Black "Gombocz, Zsofia"]
[Result "0-1"]
[ECO "C88"]
[WhiteElo "1834"]
[BlackElo "1981"]
[Annotator "NA"]
[PlyCount "134"]
[EventDate "2019.08.02"]
[EventType "swiss"]
[EventCountry "SVK"]
[SourceTitle "playchess.com"]
[Source "ChessBase"]
[SourceQuality "1"]
[TimeControl "40/5400+30:1800+30"]

1. e4 {[%emt 0:00:00]} e5 {[%emt 0:00:00]} 2. Nf3 {[%emt 0:00:00]} Nc6 {[%emt 0:00:00]} 3. Bb5 {[%emt 0:00:00]} a6 {[%emt 0:00:00]} 4. Ba4 {[%emt 0:00:00]} Nf6 {[%emt 0:00:00]} 5. O-O {[%emt 0:00:00]} Be7 {[%emt 0:00:09]} 6. Re1 {[%emt 0:00:07]} b5 {[%emt 0:00:11]} 7. Bb3 {[%emt 0:00:04]} O-O {[%emt 0:00:13]} 8. a4 {[%emt 0:00:08]} Bb7 {[%emt 0:00:23]} 9. d3 {[%emt 0:00:07]} d6 {[%emt 0:04:15]} 10. Nc3 {[%emt 0:00:31]} b4 {[%emt 0:04:50]} 11. Ne2 {[%emt 0:00:09]} Na5 {[%emt 0:00:48]} 12. Ba2 {[%emt 0:00:06]} b3 {[%emt 0:01:55]} 13. Bxb3 {[%emt 0:00:08]} Nxb3 {[%emt 0:00:21]} 14. cxb3 {[%emt 0:00:06]} Re8 {[%emt 0:06:58]} 15. Ng3 {[%emt 0:02:03]} c5 {[%emt 0:03:18]} 16. Bd2 {[%emt 0:02:01]} a5 {[%emt 0:09:15]} 17. Bc3 {[%emt 0:01:40]} Bf8 {[%emt 0:01:48]} 18. Nf5 {[%emt 0:06:01]} g6 {[%emt 0:05:10]} 19. Ne3 {[%emt 0:00:10]} Bh6 {[%emt 0:06:33]} 20. Nc4 {[%emt 0:01:37]} Nh5 {[%emt 0:01:26]} 21. Ne3 {[%emt 0:11:26]} Nf4 {[%emt 0:02:51]} 22. Qc2 {[%emt 0:04:29]} Rf8 {[%emt 0:08:20]} 23. Rad1 {[%emt 0:04:05]} f5 {[%emt 0:08:15]} 24. Nxe5 {[%emt 0:06:59]} dxe5 {[%emt 0:06:20]} 25. Bxe5 {[%emt 0:03:48]} Qg5 {[%emt 0:01:32]} 26. Qc4+ {[%emt 0:05:22]} Rf7 {[%emt 0:00:08]} 27. f3 {[%emt 0:06:40]} fxe4 {[%emt 0:06:35]} 28. Bxf4 {[%emt 0:00:45]} Qxf4 {[%emt 0:00:09]} 29. dxe4 {[%emt 0:00:04]} Qc7 {[%emt 0:05:51]} 30. Nd5 {[%emt 0:08:39]} Bxd5 {[%emt 0:00:31]} 31. Rxd5 {[%emt 0:01:38]} Rc8 {[%emt 0:06:13]} 32. e5 {[%emt 0:03:11]} Kh8 {[%emt 0:02:33]} 33. Kh1 {[%emt 0:04:09]} Rd7 {[%emt 0:03:20]} 34. e6 {[%emt 0:01:39]} Rxd5 {[%emt 0:00:26]} 35. Qxd5 {[%emt 0:00:22]} Qe7 {[%emt 0:00:15]} 36. Qd7 {[%emt 0:01:59]} Re8 {[%emt 0:00:11]} 37. Qxe7 {[%emt 0:01:45]} Rxe7 {[%emt 0:00:06]} 38. Re5 {[%emt 0:00:07]} Kg7 {[%emt 0:01:52]} 39. h4 {[%emt 0:07:33]} Bf4 {[%emt 0:01:10]} 40. Rxc5 {[%emt 0:00:00]} Rxe6 {[%emt 0:00:00]} 41. g4 {[%emt 0:01:35]} Bd2 {[%emt 0:12:46]} 42. Rc7+ {[%emt 0:02:27]} Kg8 {[%emt 0:00:16]} 43. Rc8+ {[%emt 0:00:55]} Kf7 {[%emt 0:00:33]} 44. Rh8 {[%emt 0:00:20]} Kg7 {[%emt 0:00:30]} 45. Rd8 {[%emt 0:00:18]} Bb4 {[%emt 0:00:15]} 46. Kg2 {[%emt 0:03:18]} Re2+ {[%emt 0:01:20]} 47. Kf1 {[%emt 0:02:01]} Rxb2 {[%emt 0:00:26]} 48. Rd7+ {[%emt 0:00:04]} Kg8 {[%emt 0:00:07]} 49. Rd8+ {[%emt 0:00:02]} Bf8 {[%emt 0:00:08]} 50. Ra8 {[%emt 0:00:20]} Rxb3 {[%emt 0:00:25]} 51. Kg2 {[%emt 0:03:07]} Rb2+ {[%emt 0:06:43]} 52. Kg1 {[%emt 0:05:28]} Rc2 {[%emt 0:05:48]} 53. Rxa5 {[%emt 0:00:38]} Bc5+ {[%emt 0:00:16]} 54. Kh1 {[%emt 0:00:11]} Be7 {[%emt 0:00:29]} 55. h5 {[%emt 0:02:16]} Rf2 {[%emt 0:03:55]} 56. hxg6 {[%emt 0:02:40]} hxg6 {[%emt 0:00:08]} 57. Re5 {[%emt 0:01:08]} Kf7 {[%emt 0:01:00]} 58. Re3 {[%emt 0:00:58]} Bd6 {[%emt 0:02:28]} 59. Rb3 {[%emt 0:02:11]} Ra2 {[%emt 0:01:37]} 60. Rb7+ {[%emt 0:02:26]} Ke6 {[%emt 0:00:40]} 61. Ra7 {[%emt 0:02:37]} Rf2 {[%emt 0:00:36]} 62. Rg7 {[%emt 0:00:07]} Kf6 {[%emt 0:00:12]} 63. Rd7 {[%emt 0:00:08]} Be5 {[%emt 0:00:16]} 64. a5 {[%emt 0:00:56]} Rxf3 {[%emt 0:00:39]} 65. a6 {[%emt 0:00:11]} Ra3 {[%emt 0:00:07]} 66. a7 {[%emt 0:00:07]} Kg5 {[%emt 0:00:45]} 67. Rd5 {[%emt 0:00:24]} Kf4 {[%emt 0:00:08]} 0-1

[Event "EYCC Girls-U16 2019"]
[Site "Bratislava"]
[Date "2019.08.07"]
[Round "6.19"]
[White "Kuzich, Aryna"]
[Black "Walterova, Ema"]
[Result "1-0"]
[ECO "C44"]
[WhiteElo "1940"]
[BlackElo "1761"]
[Annotator "NA"]
[PlyCount "41"]
[EventDate "2019.08.02"]
[EventType "swiss"]
[EventCountry "SVK"]
[SourceTitle "playchess.com"]
[Source "ChessBase"]
[SourceQuality "1"]
[TimeControl "40/5400+30:1800+30"]

1. e4 {[%emt 0:00:00]} e5 {[%emt 0:00:00]} 2. Nf3 {[%emt 0:00:00]} Nc6 {[%emt 0:00:00]} 3. d4 {[%emt 0:00:00]} exd4 {[%emt 0:00:53]} 4. c3 {[%emt 0:00:08]} dxc3 {[%emt 0:01:06]} 5. Nxc3 {[%emt 0:00:07]} Bb4 {[%emt 0:00:34]} 6. Bc4 {[%emt 0:00:48]} Nf6 {[%emt 0:02:43]} 7. O-O {[%emt 0:03:42]} d6 {[%emt 0:05:25]} 8. Nd5 {[%emt 0:10:31]} Nxd5 {[%emt 0:10:08]} 9. exd5 {[%emt 0:00:57]} O-O {[%emt 0:30:50]} 10. dxc6 {[%emt 0:00:32]} bxc6 {[%emt 0:00:01]} 11. a3 {[%emt 0:02:32]} Bc5 {[%emt 0:00:26]} 12. b4 {[%emt 0:01:27]} Bb6 {[%emt 0:00:15]} 13. Bg5 {[%emt 0:02:40]} Qd7 {[%emt 0:00:59]} 14. Re1 {[%emt 0:01:10]} h6 {[%emt 0:02:04]} 15. Be7 {[%emt 0:18:23]} Re8 {[%emt 0:11:36]} 16. Bh4 {[%emt 0:10:54]} d5 {[%emt 0:07:29]} 17. Bd3 {[%emt 0:01:05]} Bb7 {[%emt 0:01:30]} 18. Ne5 {[%emt 0:02:36]} Qd6 {[%emt 0:04:36]} 19. Qh5 {[%emt 0:02:20]} g6 {[%emt 0:13:39]} 20. Nxg6 {[%emt 0:00:24]} fxg6 {[%emt 0:00:22]} 21. Qxh6 {[%emt 0:01:13]} 1-0

[Event "EYCC Girls-U16 2019"]
[Site "Bratislava"]
[Date "2019.08.07"]
[Round "6.21"]
[White "Eizaguerri Floris, Maria"]
[Black "Zarebska, Lena"]
[Result "0-1"]
[ECO "B34"]
[WhiteElo "2099"]
[BlackElo "1773"]
[Annotator "NA"]
[PlyCount "92"]
[EventDate "2019.08.02"]
[EventType "swiss"]
[EventCountry "SVK"]
[SourceTitle "playchess.com"]
[Source "ChessBase"]
[SourceQuality "1"]
[TimeControl "40/5400+30:1800+30"]

1. e4 {[%emt 0:00:00]} c5 {[%emt 0:00:00]} 2. Nf3 {[%emt 0:00:00]} Nc6 {[%emt 0:00:00]} 3. d4 {[%emt 0:00:00]} cxd4 {[%emt 0:00:00]} 4. Nxd4 {[%emt 0:00:00]} Nf6 {[%emt 0:00:48]} 5. Nc3 {[%emt 0:00:00]} e5 {[%emt 0:00:07]} 6. Ndb5 {[%emt 0:00:00]} d6 {[%emt 0:00:09]} 7. Nd5 {[%emt 0:00:06]} Nxd5 {[%emt 0:00:29]} 8. exd5 {[%emt 0:00:07]} Nb8 {[%emt 0:00:49]} 9. a4 {[%emt 0:00:09]} a6 {[%emt 0:01:10]} 10. Na3 {[%emt 0:00:14]} Be7 {[%emt 0:01:16]} 11. Be2 {[%emt 0:00:20]} O-O {[%emt 0:00:46]} 12. O-O {[%emt 0:01:12]} f5 {[%emt 0:01:10]} 13. f4 {[%emt 0:01:35]} e4 {[%emt 0:13:39]} 14. Nc4 {[%emt 0:00:24]} b6 {[%emt 0:02:07]} 15. Be3 {[%emt 0:02:44]} Nd7 {[%emt 0:00:32]} 16. Bd4 {[%emt 0:03:34]} Bb7 {[%emt 0:02:41]} 17. Ne3 {[%emt 0:01:14]} g6 {[%emt 0:25:06]} 18. c4 {[%emt 0:05:15]} Bf6 {[%emt 0:00:55]} 19. b4 {[%emt 0:01:45]} a5 {[%emt 0:02:06]} 20. Rb1 {[%emt 0:05:48]} axb4 {[%emt 0:07:37]} 21. Rxb4 {[%emt 0:00:18]} Nc5 {[%emt 0:00:33]} 22. Bxf6 {[%emt 0:04:23]} Qxf6 {[%emt 0:00:20]} 23. Qa1 {[%emt 0:08:54]} Qe7 {[%emt 0:04:03]} 24. Rfb1 {[%emt 0:11:43]} Bc8 {[%emt 0:01:54]} 25. Rxb6 {[%emt 0:13:06]} Rxa4 {[%emt 0:00:18]} 26. Qd4 {[%emt 0:08:06]} Ra2 {[%emt 0:11:16]} 27. Bf1 {[%emt 0:03:18]} Qh4 {[%emt 0:03:13]} 28. Rxd6 {[%emt 0:04:30]} Qxf4 {[%emt 0:03:22]} 29. Rbb6 {[%emt 0:17:45]} Qf2+ {[%emt 0:03:47]} 30. Kh1 {[%emt 0:00:04]} Ra7 {[%emt 0:01:17]} 31. Rb2 {[%emt 0:03:16]} Qe1 {[%emt 0:02:05]} 32. Qd2 {[%emt 0:04:21]} Ra1 {[%emt 0:02:48]} 33. Qxe1 {[%emt 0:00:21]} Rxe1 {[%emt 0:00:03]} 34. Re2 {[%emt 0:00:44]} Rb1 {[%emt 0:02:20]} 35. Kg1 {[%emt 0:00:33]} f4 {[%emt 0:00:26]} 36. Nc2 {[%emt 0:00:12]} f3 {[%emt 0:00:26]} 37. gxf3 {[%emt 0:00:34]} exf3 {[%emt 0:00:22]} 38. Ree6 {[%emt 0:01:39]} Nxe6 {[%emt 0:01:40]} 39. dxe6 {[%emt 0:00:06]} f2+ {[%emt 0:00:12]} 40. Kg2 {[%emt 0:00:00]} Bb7+ {[%emt 0:00:00]} 41. Rd5 {[%emt 0:01:30]} Re8 {[%emt 0:04:29]} 42. Kxf2 {[%emt 0:04:16]} Rf8+ {[%emt 0:02:47]} 43. Ke2 {[%emt 0:00:12]} Bxd5 {[%emt 0:00:45]} 44. cxd5 {[%emt 0:00:13]} Rfxf1 {[%emt 0:01:50]} 45. d6 {[%emt 0:01:00]} Kf8 {[%emt 0:00:10]} 46. Nd4 {[%emt 0:00:37]} Rfd1 {[%emt 0:03:28]} 0-1

[Event "EYCC Girls-U16 2019"]
[Site "Bratislava"]
[Date "2019.08.07"]
[Round "6.22"]
[White "Katkov, Michelle"]
[Black "Kaygisiz, Ilayda"]
[Result "0-1"]
[ECO "B22"]
[WhiteElo "2129"]
[BlackElo "1775"]
[Annotator "NA"]
[PlyCount "76"]
[EventDate "2019.08.02"]
[EventType "swiss"]
[EventCountry "SVK"]
[SourceTitle "playchess.com"]
[Source "ChessBase"]
[SourceQuality "1"]
[TimeControl "40/5400+30:1800+30"]

1. e4 {[%emt 0:00:00]} c5 {[%emt 0:00:00]} 2. c3 {[%emt 0:00:00]} Nf6 {[%emt 0:00:00]} 3. e5 {[%emt 0:00:00]} Nd5 {[%emt 0:00:00]} 4. d4 {[%emt 0:00:05]} cxd4 {[%emt 0:00:03]} 5. cxd4 {[%emt 0:00:06]} Nc6 {[%emt 0:02:25]} 6. Nf3 {[%emt 0:00:07]} d6 {[%emt 0:00:02]} 7. Bc4 {[%emt 0:00:07]} Nb6 {[%emt 0:00:01]} 8. Bb5 {[%emt 0:00:06]} Bd7 {[%emt 0:02:16]} 9. Nc3 {[%emt 0:03:23]} dxe5 {[%emt 0:08:38]} 10. d5 {[%emt 0:09:50]} Nb4 {[%emt 0:27:13]} 11. Nxe5 {[%emt 0:06:21]} Bxb5 {[%emt 0:03:24]} 12. Nxb5 {[%emt 0:01:52]} Rc8 {[%emt 0:08:11]} 13. O-O {[%emt 0:04:59]} Qxd5 {[%emt 0:03:14]} 14. Nxa7 {[%emt 0:16:20]} Rc5 {[%emt 0:23:06]} 15. Bd2 {[%emt 0:11:36]} Qxe5 {[%emt 0:02:10]} 16. Bxb4 {[%emt 0:00:19]} Rd5 {[%emt 0:00:27]} 17. Qb3 {[%emt 0:02:24]} Qb8 {[%emt 0:11:11]} 18. Bc5 {[%emt 0:06:19]} Rxc5 {[%emt 0:04:01]} 19. Qxb6 {[%emt 0:00:05]} Qc7 {[%emt 0:00:02]} 20. Qb3 {[%emt 0:13:28]} e6 {[%emt 0:01:23]} 21. Rfd1 {[%emt 0:00:10]} Bd6 {[%emt 0:00:47]} 22. g3 {[%emt 0:00:53]} Be5 {[%emt 0:01:03]} 23. Qa4+ {[%emt 0:11:19]} Ke7 {[%emt 0:00:02]} 24. Qb4 {[%emt 0:00:07]} Ra8 {[%emt 0:01:10]} 25. Nb5 {[%emt 0:01:41]} Qc6 {[%emt 0:00:09]} 26. Rac1 {[%emt 0:01:05]} b6 {[%emt 0:00:02]} 27. Na3 {[%emt 0:01:20]} Ra4 {[%emt 0:01:05]} 28. Qd2 {[%emt 0:08:22]} Rd4 {[%emt 0:00:29]} 29. Qe3 {[%emt 0:01:26]} Rxd1+ {[%emt 0:00:43]} 30. Rxd1 {[%emt 0:00:04]} Bxb2 {[%emt 0:00:19]} 31. Qd2 {[%emt 0:00:55]} Rd5 {[%emt 0:00:09]} 32. Qb4+ {[%emt 0:00:06]} Qc5 {[%emt 0:00:44]} 33. Qh4+ {[%emt 0:00:59]} g5 {[%emt 0:00:32]} 34. Qa4 {[%emt 0:00:32]} Rxd1+ {[%emt 0:00:11]} 35. Qxd1 {[%emt 0:00:05]} Bxa3 {[%emt 0:00:09]} 36. Qh5 {[%emt 0:00:19]} Qf5 {[%emt 0:00:38]} 37. Qe2 {[%emt 0:00:25]} Bc5 {[%emt 0:00:08]} 38. Qb2 {[%emt 0:01:00]} Qxf2+ {[%emt 0:00:08]} 0-1